[Event "ROU-chT 1st League 2019"]
[Site "Mamaia"]
[Date "2019.09.26"]
[Round "6.6"]
[White "Petrisor, Adrian-Marian"]
[Black "Banzea, Alexandru-Bogdan"]
[Result "1/2-1/2"]
[ECO "B12"]
[WhiteElo "2411"]
[BlackElo "2401"]
[Annotator "NA"]
[PlyCount "35"]
[EventDate "2019.09.21"]
[EventType "team-tourn"]
[EventCountry "ROU"]
[SourceTitle "playchess.com"]
[Source "ChessBase"]
[SourceQuality "1"]
[TimeControl "40/5400+30:1800+30"]

1. e4 {[%emt 0:00:00]} c6 {[%emt 0:00:00]} 2. d4 {[%emt 0:00:00]} d5 {[%emt 0:00:02]} 3. e5 {[%emt 0:01:59]} Bf5 {[%emt 0:00:09]} 4. Nf3 {[%emt 0:01:21]} e6 {[%emt 0:00:22]} 5. Be2 {[%emt 0:00:30]} Nd7 {[%emt 0:00:45]} 6. O-O {[%emt 0:00:44]} h6 {[%emt 0:00:07]} 7. Nbd2 {[%emt 0:02:59]} Ne7 {[%emt 0:02:19]} 8. Re1 {[%emt 0:03:52]} a6 {[%emt 0:04:01]} 9. Nf1 {[%emt 0:00:58]} c5 {[%emt 0:08:17]} 10. Ne3 {[%emt 0:05:58]} Be4 {[%emt 0:03:13]} 11. dxc5 {[%emt 0:24:52]} Bxf3 {[%emt 0:14:10]} 12. Bxf3 {[%emt 0:00:10]} Nxe5 {[%emt 0:01:16]} 13. Be2 {[%emt 0:15:23]} g6 {[%emt 0:10:16]} 14. Ng4 {[%emt 0:13:50]} Nxg4 {[%emt 0:07:28]} 15. Bxg4 {[%emt 0:00:05]} Bg7 {[%emt 0:00:29]} 16. c4 {[%emt 0:00:15]} O-O {[%emt 0:00:40]} 17. cxd5 {[%emt 0:00:04]} Nxd5 {[%emt 0:01:48]} 18. Bf3 1/2-1/2

[Event "ROU-chT 1st League 2019"]
[Site "Mamaia"]
[Date "2019.09.26"]
[Round "6.7"]
[White "Parligras, Mircea-Emilian"]
[Black "Kozak, Adam"]
[Result "1/2-1/2"]
[ECO "D37"]
[WhiteElo "2629"]
[BlackElo "2512"]
[Annotator "ChessBase"]
[PlyCount "46"]
[EventDate "2019.09.21"]
[EventType "team-tourn"]
[EventCountry "ROU"]
[SourceTitle "playchess.com"]
[Source "ChessBase"]
[SourceQuality "1"]
[TimeControl "40/5400+30:1800+30"]

1. d4 {[%emt 0:03:22]} Nf6 {[%emt 0:00:00]} 2. c4 {[%emt 0:00:08]} e6 {[%emt 0:00:00]} 3. Nf3 {[%emt 0:00:07]} d5 {[%emt 0:00:00]} 4. Nc3 {[%emt 0:00:13]} Nbd7 {[%emt 0:00:00]} 5. Qc2 {[%emt 0:00:20]} dxc4 {[%emt 0:00:17]} 6. e4 {[%emt 0:00:26]} c5 {[%emt 0:00:12]} 7. dxc5 {[%emt 0:00:26]} Bxc5 {[%emt 0:01:01]} 8. Bxc4 {[%emt 0:00:11]} a6 {[%emt 0:00:13]} 9. O-O {[%emt 0:04:58]} Qc7 {[%emt 0:00:13]} 10. Qe2 {[%emt 0:02:51]} b5 {[%emt 0:00:23]} 11. Bd3 {[%emt 0:02:23]} b4 {[%emt 0:11:05]} 12. Na4 {[%emt 0:02:37]} Be7 {[%emt 0:12:16]} 13. Bd2 {[%emt 0:07:20]} Bb7 {[%emt 0:01:41]} 14. Rfc1 {[%emt 0:03:25]} Qb8 {[%emt 0:07:49]} 15. a3 {[%emt 0:06:38]} bxa3 {[%emt 0:06:02]} 16. bxa3 {[%emt 0:01:43]} O-O {[%emt 0:04:44]} 17. Bb4 {[%emt 0:05:20]} Qd8 {[%emt 0:04:41]} 18. Rab1 {[%emt 0:14:15]} Rb8 {[%emt 0:01:05]} 19. Nc5 {[%emt 0:09:26]} Nxc5 {[%emt 0:08:32]} 20. Bxc5 {[%emt 0:00:05]} Bxc5 {[%emt 0:00:08]} 21. Rxc5 {[%emt 0:00:03]} Ba8 {[%emt 0:01:58]} 22. Rxb8 {[%emt 0:03:14]} Qxb8 {[%emt 0:00:12]} 23. Qc2 {[%emt 0:00:31]} h6 {[%emt 0:02:46]} 1/2-1/2

[Event "ROU-chT 1st League 2019"]
[Site "Mamaia"]
[Date "2019.09.26"]
[Round "6.8"]
[White "Gavrilescu, David"]
[Black "Deac, Bogdan-Daniel"]
[Result "1/2-1/2"]
[ECO "C45"]
[WhiteElo "2451"]
[BlackElo "2613"]
[Annotator "ChessBase"]
[PlyCount "83"]
[EventDate "2019.09.21"]
[EventType "team-tourn"]
[EventCountry "ROU"]
[SourceTitle "playchess.com"]
[Source "ChessBase"]
[SourceQuality "1"]
[TimeControl "40/5400+30:1800+30"]

1. e4 {[%emt 0:00:00]} e5 {[%emt 0:00:00]} 2. Nf3 {[%emt 0:00:03]} Nc6 {[%emt 0:00:03]} 3. d4 {[%emt 0:00:52]} exd4 {[%emt 0:00:06]} 4. Nxd4 {[%emt 0:00:27]} Nf6 {[%emt 0:00:09]} 5. Nxc6 {[%emt 0:00:33]} bxc6 {[%emt 0:00:03]} 6. e5 {[%emt 0:00:17]} Qe7 {[%emt 0:00:03]} 7. Qe2 {[%emt 0:00:27]} Nd5 {[%emt 0:00:03]} 8. h4 {[%emt 0:00:21]} Qe6 {[%emt 0:05:44]} 9. Nd2 {[%emt 0:01:21]} d6 {[%emt 0:01:50]} 10. exd6 {[%emt 0:01:08]} Bxd6 {[%emt 0:00:02]} 11. Nc4 {[%emt 0:00:51]} Bc5 {[%emt 0:00:03]} 12. a3 {[%emt 0:01:14]} O-O {[%emt 0:00:03]} 13. Qxe6 {[%emt 0:01:33]} Bxe6 {[%emt 0:00:03]} 14. Bd3 {[%emt 0:01:18]} a5 {[%emt 0:01:55]} 15. O-O {[%emt 0:01:41]} Bd4 {[%emt 0:04:23]} 16. Re1 {[%emt 0:04:44]} Rfb8 {[%emt 0:05:32]} 17. Ne5 {[%emt 0:14:46]} Bxb2 {[%emt 0:08:37]} 18. Bxb2 {[%emt 0:00:38]} Rxb2 {[%emt 0:00:02]} 19. Nxc6 {[%emt 0:00:13]} Rb6 {[%emt 0:02:23]} 20. Nd4 {[%emt 0:02:19]} Nf4 {[%emt 0:00:11]} 21. Nxe6 {[%emt 0:01:05]} Nxd3 {[%emt 0:00:56]} 22. Nxc7 {[%emt 0:01:08]} Nxe1 {[%emt 0:00:05]} 23. Nxa8 {[%emt 0:00:06]} Nxc2 {[%emt 0:00:06]} 24. Nxb6 {[%emt 0:01:11]} Nxa1 {[%emt 0:00:06]} 25. Nc4 {[%emt 0:02:11]} Nb3 {[%emt 0:06:00]} 26. Kf1 {[%emt 0:01:15]} f5 {[%emt 0:00:15]} 27. Ke2 {[%emt 0:09:58]} Kf7 {[%emt 0:00:16]} 28. Kd3 {[%emt 0:04:22]} Ke6 {[%emt 0:00:14]} 29. Kc3 {[%emt 0:04:02]} Nc5 {[%emt 0:00:28]} 30. Nxa5 {[%emt 0:04:44]} Ne4+ {[%emt 0:00:06]} 31. Kd4 {[%emt 0:00:08]} Nxf2 {[%emt 0:00:06]} 32. Nc4 {[%emt 0:00:29]} h6 {[%emt 0:06:02]} 33. a4 {[%emt 0:05:35]} g5 {[%emt 0:00:21]} 34. a5 {[%emt 0:00:37]} Kd7 {[%emt 0:00:09]} 35. h5 {[%emt 0:04:58]} f4 {[%emt 0:03:25]} 36. Ne5+ {[%emt 0:04:21]} Kc7 {[%emt 0:00:08]} 37. Nf7 {[%emt 0:00:20]} Ng4 {[%emt 0:02:43]} 38. Ke4 {[%emt 0:00:09]} Kb7 {[%emt 0:04:12]} 39. Kf3 {[%emt 0:01:36]} Nh2+ {[%emt 0:00:24]} 40. Ke4 {[%emt 0:00:00]} Ng4 {[%emt 0:00:00]} 41. Kf5 {[%emt 0:02:39]} Ne3+ 42. Ke4 {[%emt 0:03:41]} 1/2-1/2

[Event "ROU-chT 1st League 2019"]
[Site "Mamaia"]
[Date "2019.09.26"]
[Round "6.9"]
[White "Svetushkin, Dmitry"]
[Black "Pisu, Robert-Daniel"]
[Result "1-0"]
[ECO "C65"]
[WhiteElo "2534"]
[BlackElo "2244"]
[Annotator "ChessBase"]
[PlyCount "63"]
[EventDate "2019.09.21"]
[EventType "team-tourn"]
[EventCountry "ROU"]
[SourceTitle "playchess.com"]
[Source "ChessBase"]
[SourceQuality "1"]
[TimeControl "40/5400+30:1800+30"]

1. e4 {[%emt 0:00:00]} e5 {[%emt 0:00:53]} 2. Nf3 {[%emt 0:00:00]} Nc6 {[%emt 0:00:08]} 3. Bb5 {[%emt 0:00:00]} Nf6 {[%emt 0:00:12]} 4. d3 {[%emt 0:00:02]} Bc5 {[%emt 0:00:12]} 5. Bxc6 {[%emt 0:00:24]} dxc6 {[%emt 0:00:17]} 6. Nbd2 {[%emt 0:00:06]} Be6 {[%emt 0:03:41]} 7. O-O {[%emt 0:00:14]} Nd7 {[%emt 0:02:42]} 8. Nb3 {[%emt 0:00:21]} Bd6 {[%emt 0:12:48]} 9. Na5 {[%emt 0:01:39]} Rb8 {[%emt 0:02:17]} 10. a3 {[%emt 0:05:01]} c5 {[%emt 0:10:39]} 11. Be3 {[%emt 0:01:13]} O-O {[%emt 0:02:57]} 12. c3 {[%emt 0:14:47]} c6 {[%emt 0:15:00]} 13. b4 {[%emt 0:04:49]} Qc7 {[%emt 0:05:32]} 14. Ng5 {[%emt 0:01:47]} Rbe8 {[%emt 0:04:55]} 15. g3 {[%emt 0:05:25]} b6 {[%emt 0:09:37]} 16. Nxe6 {[%emt 0:01:30]} Rxe6 {[%emt 0:00:04]} 17. Nc4 {[%emt 0:02:06]} Kh8 {[%emt 0:00:21]} 18. Rc1 {[%emt 0:03:20]} Ree8 {[%emt 0:04:23]} 19. Qg4 {[%emt 0:01:58]} cxb4 {[%emt 0:02:11]} 20. cxb4 {[%emt 0:00:41]} c5 {[%emt 0:00:43]} 21. h4 {[%emt 0:02:48]} cxb4 {[%emt 0:05:31]} 22. Nxb6 {[%emt 0:04:15]} Nf6 {[%emt 0:00:06]} 23. Qf5 {[%emt 0:01:37]} Qb8 {[%emt 0:01:23]} 24. Nc4 {[%emt 0:00:28]} bxa3 {[%emt 0:02:31]} 25. h5 {[%emt 0:05:00]} Bb4 {[%emt 0:05:51]} 26. h6 {[%emt 0:03:35]} Re6 {[%emt 0:00:02]} 27. hxg7+ {[%emt 0:00:27]} Kxg7 {[%emt 0:00:01]} 28. d4 {[%emt 0:01:55]} Rfe8 {[%emt 0:03:01]} 29. d5 {[%emt 0:03:05]} Ra6 {[%emt 0:00:07]} 30. f4 {[%emt 0:01:37]} exf4 {[%emt 0:06:20]} 31. Bd4 {[%emt 0:01:19]} h6 {[%emt 0:00:27]} 32. Rxf4 {[%emt 0:00:48]} 1-0

[Event "ROU-chT 1st League 2019"]
[Site "Mamaia"]
[Date "2019.09.26"]
[Round "6.10"]
[White "Coca, Cristi-Iulian"]
[Black "Iordachescu, Viorel"]
[Result "1-0"]
[ECO "B06"]
[WhiteElo "2106"]
[BlackElo "2602"]
[Annotator "ChessBase"]
[PlyCount "57"]
[EventDate "2019.09.21"]
[EventType "team-tourn"]
[EventCountry "ROU"]
[SourceTitle "playchess.com"]
[Source "ChessBase"]
[SourceQuality "1"]
[TimeControl "40/5400+30:1800+30"]

1. e4 {[%emt 0:00:00]} g6 {[%emt 0:00:00]} 2. d4 {[%emt 0:00:00]} Bg7 {[%emt 0:00:00]} 3. Nc3 {[%emt 0:00:17]} c6 {[%emt 0:00:00]} 4. Be3 {[%emt 0:01:06]} Qb6 {[%emt 0:00:47]} 5. Qd2 {[%emt 0:03:14]} Qxb2 {[%emt 0:00:19]} 6. Rb1 {[%emt 0:00:30]} Qa3 {[%emt 0:00:07]} 7. Bd3 {[%emt 0:03:33]} d6 {[%emt 0:00:37]} 8. Nge2 {[%emt 0:01:03]} Qa5 {[%emt 0:02:10]} 9. f4 {[%emt 0:07:57]} Nf6 {[%emt 0:00:30]} 10. h3 {[%emt 0:01:14]} e5 {[%emt 0:03:37]} 11. dxe5 {[%emt 0:03:09]} dxe5 {[%emt 0:00:07]} 12. f5 {[%emt 0:03:03]} gxf5 {[%emt 0:11:20]} 13. exf5 {[%emt 0:01:05]} h5 {[%emt 0:09:00]} 14. O-O {[%emt 0:02:23]} h4 {[%emt 0:00:36]} 15. Bc4 {[%emt 0:02:47]} Nbd7 {[%emt 0:02:20]} 16. Kh1 {[%emt 0:06:39]} Bf8 {[%emt 0:01:55]} 17. Bg5 {[%emt 0:06:51]} Be7 {[%emt 0:03:07]} 18. Rbe1 {[%emt 0:01:32]} Qb4 {[%emt 0:02:02]} 19. Bb3 {[%emt 0:05:41]} b6 {[%emt 0:03:46]} 20. a3 {[%emt 0:23:32]} Qc5 {[%emt 0:07:01]} 21. Rd1 {[%emt 0:02:34]} Qa5 {[%emt 0:06:55]} 22. Be6 {[%emt 0:04:01]} Nc5 {[%emt 0:15:40]} 23. Bxf6 {[%emt 0:01:36]} Bxf6 {[%emt 0:00:22]} 24. Qd6 {[%emt 0:00:42]} Ba6 {[%emt 0:26:35]} 25. Ne4 {[%emt 0:06:41]} Rh6 {[%emt 0:01:20]} 26. Nxc5 {[%emt 0:00:57]} fxe6 {[%emt 0:01:22]} 27. Qxe6+ {[%emt 0:02:29]} Be7 {[%emt 0:00:27]} 28. f6 {[%emt 0:01:03]} Qxc5 {[%emt 0:01:24]} 29. f7+ {[%emt 0:00:05]} 1-0

[Event "ROU-chT 1st League 2019"]
[Site "Mamaia"]
[Date "2019.09.26"]
[Round "6.11"]
[White "Nevednichy, Vladislav"]
[Black "Dobrin, Ionut-Alexandru"]
[Result "1-0"]
[ECO "B20"]
[WhiteElo "2522"]
[BlackElo "2089"]
[Annotator "ChessBase"]
[PlyCount "77"]
[EventDate "2019.09.21"]
[EventType "team-tourn"]
[EventCountry "ROU"]
[SourceTitle "playchess.com"]
[Source "ChessBase"]
[SourceQuality "1"]
[TimeControl "40/5400+30:1800+30"]

1. e4 {[%emt 0:00:00]} c5 {[%emt 0:00:00]} 2. Na3 {[%emt 0:00:00]} e6 {[%emt 0:00:05]} 3. c3 {[%emt 0:00:18]} d5 {[%emt 0:01:52]} 4. e5 {[%emt 0:00:18]} Nc6 {[%emt 0:01:04]} 5. Nf3 {[%emt 0:03:16]} Qb6 {[%emt 0:02:55]} 6. Nc2 {[%emt 0:07:02]} Bd7 {[%emt 0:06:25]} 7. d4 {[%emt 0:01:21]} f6 {[%emt 0:05:36]} 8. Bd3 {[%emt 0:03:20]} O-O-O {[%emt 0:06:00]} 9. O-O {[%emt 0:00:57]} cxd4 {[%emt 0:08:45]} 10. cxd4 {[%emt 0:00:11]} Nge7 {[%emt 0:01:02]} 11. b4 {[%emt 0:06:17]} Ng6 {[%emt 0:03:50]} 12. b5 {[%emt 0:04:01]} Nb4 {[%emt 0:05:43]} 13. Nxb4 {[%emt 0:01:18]} Bxb4 {[%emt 0:00:10]} 14. Qb3 {[%emt 0:02:26]} Be7 {[%emt 0:05:13]} 15. a4 {[%emt 0:04:38]} a5 {[%emt 0:00:36]} 16. Bxg6 {[%emt 0:00:44]} hxg6 {[%emt 0:00:12]} 17. Qc2+ {[%emt 0:00:02]} Kb8 {[%emt 0:00:59]} 18. Qxg6 {[%emt 0:00:04]} Rdf8 {[%emt 0:07:27]} 19. Ba3 {[%emt 0:02:10]} Qd8 {[%emt 0:02:25]} 20. Qxg7 {[%emt 0:02:49]} Bxa3 {[%emt 0:00:11]} 21. Rxa3 {[%emt 0:00:01]} Rhg8 {[%emt 0:02:51]} 22. Qh6 {[%emt 0:00:43]} Qe7 {[%emt 0:01:49]} 23. Rfa1 {[%emt 0:01:02]} Rh8 {[%emt 0:01:51]} 24. Qd2 {[%emt 0:00:43]} b6 {[%emt 0:01:03]} 25. exf6 {[%emt 0:00:06]} Rxf6 {[%emt 0:04:50]} 26. Ne5 {[%emt 0:01:11]} Rfh6 {[%emt 0:01:11]} 27. h3 {[%emt 0:02:49]} Rf6 {[%emt 0:03:07]} 28. Rc3 {[%emt 0:01:09]} Kb7 {[%emt 0:03:30]} 29. Qg5 {[%emt 0:01:40]} Rhf8 {[%emt 0:02:16]} 30. Rac1 {[%emt 0:00:27]} Be8 {[%emt 0:01:38]} 31. Ng4 {[%emt 0:00:59]} R6f7 {[%emt 0:00:27]} 32. Qe5 {[%emt 0:00:04]} Qd7 {[%emt 0:02:23]} 33. Rc6 {[%emt 0:00:56]} Qd8 {[%emt 0:00:36]} 34. R6c3 {[%emt 0:01:56]} Re7 {[%emt 0:01:32]} 35. Rc8 {[%emt 0:01:57]} Qxc8 {[%emt 0:00:27]} 36. Rxc8 {[%emt 0:00:03]} Kxc8 {[%emt 0:00:07]} 37. Qd6 {[%emt 0:00:03]} Rff7 {[%emt 0:01:38]} 38. Ne5 {[%emt 0:00:21]} Rg7 {[%emt 0:01:07]} 39. Qxb6 {[%emt 0:00:06]} 1-0

[Event "ROU-chT 1st League 2019"]
[Site "Mamaia"]
[Date "2019.09.26"]
[Round "6.12"]
[White "Craciun, Alexandru-Emilian"]
[Black "Costachi, Mihnea"]
[Result "0-1"]
[ECO "C89"]
[WhiteElo "2077"]
[BlackElo "2463"]
[Annotator "ChessBase"]
[PlyCount "130"]
[EventDate "2019.09.21"]
[EventType "team-tourn"]
[EventCountry "ROU"]
[SourceTitle "playchess.com"]
[Source "ChessBase"]
[SourceQuality "1"]
[TimeControl "40/5400+30:1800+30"]

1. e4 {[%emt 0:00:00]} e5 {[%emt 0:00:00]} 2. Nf3 {[%emt 0:00:00]} Nc6 {[%emt 0:00:00]} 3. Bb5 {[%emt 0:00:00]} a6 {[%emt 0:00:05]} 4. Ba4 {[%emt 0:00:02]} Nf6 {[%emt 0:00:04]} 5. O-O {[%emt 0:00:19]} Be7 {[%emt 0:00:56]} 6. Re1 {[%emt 0:01:01]} b5 {[%emt 0:00:23]} 7. Bb3 {[%emt 0:00:09]} O-O {[%emt 0:00:35]} 8. c3 {[%emt 0:01:08]} d5 {[%emt 0:00:28]} 9. d3 {[%emt 0:09:06]} dxe4 {[%emt 0:00:06]} 10. dxe4 {[%emt 0:00:08]} Qxd1 {[%emt 0:00:04]} 11. Bxd1 {[%emt 0:00:08]} Rd8 {[%emt 0:00:36]} 12. Bc2 {[%emt 0:00:36]} h6 {[%emt 0:04:30]} 13. Nbd2 {[%emt 0:05:00]} Be6 {[%emt 0:08:58]} 14. Bb3 {[%emt 0:06:12]} Bxb3 {[%emt 0:01:31]} 15. Nxb3 {[%emt 0:00:22]} a5 {[%emt 0:00:24]} 16. Nbd2 {[%emt 0:08:36]} a4 {[%emt 0:00:45]} 17. Nf1 {[%emt 0:15:30]} Rd3 {[%emt 0:06:49]} 18. Ng3 {[%emt 0:10:03]} Bc5 {[%emt 0:01:48]} 19. h3 {[%emt 0:02:06]} Nd7 {[%emt 0:05:14]} 20. Kf1 {[%emt 0:02:17]} Nb6 {[%emt 0:00:32]} 21. Ke2 {[%emt 0:04:41]} Rd7 {[%emt 0:05:20]} 22. Nf1 {[%emt 0:04:01]} Nc4 {[%emt 0:04:23]} 23. N3d2 {[%emt 0:06:02]} Nd6 {[%emt 0:02:45]} 24. Ne3 {[%emt 0:05:41]} Bxe3 {[%emt 0:01:10]} 25. Kxe3 {[%emt 0:00:31]} Na5 {[%emt 0:00:04]} 26. Kd3 {[%emt 0:08:08]} c5 {[%emt 0:02:23]} 27. Kc2 {[%emt 0:00:37]} b4 {[%emt 0:00:14]} 28. Re3 {[%emt 0:06:42]} Ndc4 {[%emt 0:17:13]} 29. Rd3 {[%emt 0:04:15]} Rxd3 {[%emt 0:00:29]} 30. Kxd3 {[%emt 0:00:05]} Nxd2 {[%emt 0:04:04]} 31. Bxd2 {[%emt 0:01:15]} b3 {[%emt 0:00:28]} 32. Be3 {[%emt 0:00:36]} c4+ {[%emt 0:00:36]} 33. Ke2 {[%emt 0:00:02]} bxa2 {[%emt 0:00:38]} 34. Rxa2 {[%emt 0:00:03]} Nb3 {[%emt 0:00:05]} 35. f4 {[%emt 0:00:59]} exf4 {[%emt 0:00:29]} 36. Bxf4 {[%emt 0:00:08]} Kf8 {[%emt 0:00:19]} 37. Kf3 {[%emt 0:01:03]} Ke7 {[%emt 0:00:10]} 38. e5 {[%emt 0:00:34]} Kd7 {[%emt 0:00:35]} 39. Ke4 {[%emt 0:00:16]} Kc6 {[%emt 0:00:03]} 40. Be3 {[%emt 0:00:00]} Kb5 {[%emt 0:00:00]} 41. g4 {[%emt 0:01:19]} Re8 {[%emt 0:03:42]} 42. h4 {[%emt 0:04:17]} f6 {[%emt 0:00:27]} 43. Bd4 {[%emt 0:03:31]} fxe5 {[%emt 0:00:04]} 44. Be3 {[%emt 0:01:08]} Rf8 {[%emt 0:00:53]} 45. h5 {[%emt 0:01:18]} Rf1 {[%emt 0:06:33]} 46. Kxe5 {[%emt 0:03:10]} Na1 {[%emt 0:11:09]} 47. Bd4 {[%emt 0:04:48]} Nc2 {[%emt 0:00:03]} 48. Ke6 {[%emt 0:06:31]} Rf4 {[%emt 0:01:11]} 49. Bxg7 {[%emt 0:00:08]} Rxg4 {[%emt 0:00:03]} 50. Bf6 {[%emt 0:03:43]} Rg2 {[%emt 0:01:40]} 51. Kf7 {[%emt 0:01:35]} Rg1 {[%emt 0:00:17]} 52. Be7 {[%emt 0:01:48]} Ne3 {[%emt 0:06:20]} 53. Bf8 {[%emt 0:00:57]} Rf1+ {[%emt 0:00:18]} 54. Kg7 {[%emt 0:01:48]} Ng4 {[%emt 0:04:58]} 55. Be7 {[%emt 0:01:10]} Re1 {[%emt 0:00:08]} 56. Bh4 {[%emt 0:01:18]} Rh1 {[%emt 0:00:14]} 57. Be7 {[%emt 0:00:23]} Rxh5 {[%emt 0:00:29]} 58. Ra1 {[%emt 0:00:10]} Re5 {[%emt 0:03:45]} 59. Bd6 {[%emt 0:01:18]} Rd5 {[%emt 0:01:56]} 60. Bf4 {[%emt 0:00:23]} Nf2 {[%emt 0:03:56]} 61. Be3 {[%emt 0:00:51]} Nd1 {[%emt 0:01:44]} 62. Bxh6 {[%emt 0:00:13]} Nxb2 {[%emt 0:00:11]} 63. Rb1 {[%emt 0:00:34]} a3 {[%emt 0:00:06]} 64. Kf6 {[%emt 0:00:32]} Rd6+ {[%emt 0:00:13]} 65. Kg5 {[%emt 0:00:07]} Rd1 {[%emt 0:00:16]} 0-1

[Event "ROU-chT 1st League 2019"]
[Site "Mamaia"]
[Date "2019.09.26"]
[Round "6.13"]
[White "Macovei, Andrei"]
[Black "Erdos, Viktor"]
[Result "1/2-1/2"]
[ECO "C70"]
[WhiteElo "2426"]
[BlackElo "2604"]
[Annotator "ChessBase"]
[PlyCount "69"]
[EventDate "2019.09.21"]
[EventType "team-tourn"]
[EventCountry "ROU"]
[SourceTitle "playchess.com"]
[Source "ChessBase"]
[SourceQuality "1"]
[TimeControl "40/5400+30:1800+30"]

1. e4 {[%emt 0:00:00]} e5 {[%emt 0:02:22]} 2. Nf3 {[%emt 0:00:00]} Nc6 {[%emt 0:00:05]} 3. Bb5 {[%emt 0:00:24]} a6 {[%emt 0:00:18]} 4. Ba4 {[%emt 0:00:01]} b5 {[%emt 0:00:06]} 5. Bb3 {[%emt 0:00:04]} Na5 {[%emt 0:00:03]} 6. O-O {[%emt 0:14:55]} d6 {[%emt 0:00:14]} 7. d4 {[%emt 0:07:13]} exd4 {[%emt 0:00:23]} 8. Nxd4 {[%emt 0:00:41]} Bb7 {[%emt 0:00:24]} 9. c4 {[%emt 0:07:08]} c5 {[%emt 0:00:10]} 10. Nf5 {[%emt 0:01:55]} g6 {[%emt 0:00:11]} 11. Ne3 {[%emt 0:02:11]} Bg7 {[%emt 0:03:17]} 12. Nc3 {[%emt 0:07:04]} Nxb3 {[%emt 0:00:12]} 13. Qxb3 {[%emt 0:06:50]} Nf6 {[%emt 0:01:22]} 14. cxb5 {[%emt 0:07:16]} O-O {[%emt 0:08:07]} 15. bxa6 {[%emt 0:02:18]} Bxa6 {[%emt 0:35:41]} 16. Rd1 {[%emt 0:00:41]} Re8 {[%emt 0:00:09]} 17. Qc2 {[%emt 0:07:35]} Qb8 {[%emt 0:08:02]} 18. b3 {[%emt 0:01:10]} Nxe4 {[%emt 0:02:16]} 19. Bb2 {[%emt 0:00:46]} Nxc3 {[%emt 0:26:24]} 20. Bxc3 {[%emt 0:00:04]} Re6 {[%emt 0:00:18]} 21. Bxg7 {[%emt 0:10:57]} Kxg7 {[%emt 0:00:04]} 22. Qc3+ {[%emt 0:00:04]} f6 {[%emt 0:04:53]} 23. Re1 {[%emt 0:00:12]} Qg8 {[%emt 0:00:49]} 24. Rad1 {[%emt 0:09:01]} Qf7 {[%emt 0:02:07]} 25. h4 {[%emt 0:01:26]} Bb7 {[%emt 0:00:31]} 26. Rd2 {[%emt 0:03:18]} h5 {[%emt 0:01:43]} 27. Red1 {[%emt 0:00:49]} Ra6 {[%emt 0:01:44]} 28. Nd5 {[%emt 0:01:40]} Bxd5 {[%emt 0:00:16]} 29. Rxd5 {[%emt 0:01:23]} Rxa2 {[%emt 0:01:19]} 30. Rxd6 {[%emt 0:00:20]} Rxd6 31. Rxd6 {[%emt 0:00:01]} Ra3 {[%emt 0:01:14]} 32. Qxc5 {[%emt 0:05:28]} Rxb3 {[%emt 0:00:04]} 33. Rd8 {[%emt 0:00:51]} Rb1+ {[%emt 0:00:22]} 34. Kh2 {[%emt 0:00:03]} Rb7 {[%emt 0:00:19]} 35. Qd5 1/2-1/2

[Event "ROU-chT 1st League 2019"]
[Site "Mamaia"]
[Date "2019.09.26"]
[Round "6.14"]
[White "Gonda, Laszlo"]
[Black "Schitco, Ivan"]
[Result "1/2-1/2"]
[ECO "A06"]
[WhiteElo "2541"]
[BlackElo "2492"]
[Annotator "ChessBase"]
[PlyCount "23"]
[EventDate "2019.09.21"]
[EventType "team-tourn"]
[EventCountry "ROU"]
[SourceTitle "playchess.com"]
[Source "ChessBase"]
[SourceQuality "1"]
[TimeControl "40/5400+30:1800+30"]

1. Nf3 {[%emt 0:00:23]} d5 {[%emt 0:00:00]} 2. g3 {[%emt 0:00:04]} Bg4 {[%emt 0:00:06]} 3. Bg2 {[%emt 0:00:06]} Nd7 {[%emt 0:00:27]} 4. O-O {[%emt 0:00:54]} Ngf6 {[%emt 0:00:11]} 5. d3 {[%emt 0:01:03]} c6 {[%emt 0:01:02]} 6. Qe1 {[%emt 0:00:27]} e5 {[%emt 0:00:47]} 7. e4 {[%emt 0:00:08]} dxe4 {[%emt 0:00:43]} 8. dxe4 {[%emt 0:00:02]} Bc5 {[%emt 0:00:15]} 9. Nbd2 {[%emt 0:00:42]} O-O {[%emt 0:02:32]} 10. Nb3 {[%emt 0:01:16]} Be7 {[%emt 0:05:02]} 11. Bd2 {[%emt 0:09:58]} Qc7 {[%emt 0:04:30]} 12. Bc3 {[%emt 0:02:09]} 1/2-1/2

[Event "ROU-chT 1st League 2019"]
[Site "Mamaia"]
[Date "2019.09.26"]
[Round "6.15"]
[White "Dicu, Razvan-Stefan"]
[Black "Grigore, George-Gabriel"]
[Result "0-1"]
[ECO "B01"]
[WhiteElo "2291"]
[BlackElo "2491"]
[Annotator "ChessBase"]
[PlyCount "67"]
[EventDate "2019.09.21"]
[EventType "team-tourn"]
[EventCountry "ROU"]
[SourceTitle "playchess.com"]
[Source "ChessBase"]
[SourceQuality "1"]
[TimeControl "40/5400+30:1800+30"]

1. e4 {[%emt 0:00:00]} d5 {[%emt 0:00:38]} 2. exd5 {[%emt 0:00:00]} Qxd5 {[%emt 0:00:05]} 3. Nc3 {[%emt 0:00:21]} Qd6 {[%emt 0:00:13]} 4. d4 {[%emt 0:01:05]} Nf6 {[%emt 0:00:08]} 5. Nf3 {[%emt 0:01:41]} g6 {[%emt 0:00:22]} 6. Ne5 {[%emt 0:19:48]} Bg7 {[%emt 0:01:26]} 7. Be2 {[%emt 0:00:50]} O-O {[%emt 0:08:11]} 8. O-O {[%emt 0:03:21]} c5 {[%emt 0:13:44]} 9. Nb5 {[%emt 0:02:18]} Qb6 {[%emt 0:00:34]} 10. a4 {[%emt 0:27:18]} a6 {[%emt 0:13:07]} 11. dxc5 {[%emt 0:00:50]} Qxc5 {[%emt 0:00:14]} 12. Nd3 {[%emt 0:00:16]} Qb6 {[%emt 0:02:18]} 13. Be3 {[%emt 0:01:34]} Qd8 {[%emt 0:00:17]} 14. Nc3 {[%emt 0:01:46]} Nc6 {[%emt 0:01:42]} 15. Bf3 {[%emt 0:06:41]} Nd4 {[%emt 0:10:56]} 16. Bxd4 {[%emt 0:06:17]} Qxd4 {[%emt 0:00:25]} 17. a5 {[%emt 0:00:02]} Rb8 {[%emt 0:03:40]} 18. Ra4 {[%emt 0:00:40]} Qd6 {[%emt 0:05:15]} 19. Qe2 {[%emt 0:13:51]} Rd8 {[%emt 0:12:29]} 20. Re1 {[%emt 0:01:55]} e6 {[%emt 0:02:38]} 21. Ne5 {[%emt 0:04:30]} Bd7 {[%emt 0:07:48]} 22. Nc4 {[%emt 0:03:42]} Qc7 {[%emt 0:03:30]} 23. Raa1 {[%emt 0:00:04]} Bc6 {[%emt 0:00:24]} 24. Nb6 {[%emt 0:01:18]} Nd7 {[%emt 0:02:57]} 25. Bxc6 {[%emt 0:01:16]} Qxc6 {[%emt 0:00:18]} 26. Nxd7 {[%emt 0:00:26]} Rxd7 {[%emt 0:00:10]} 27. Ra3 {[%emt 0:00:58]} Rbd8 {[%emt 0:00:36]} 28. Qe4 {[%emt 0:00:38]} Qxe4 {[%emt 0:02:38]} 29. Nxe4 {[%emt 0:00:06]} Bxb2 {[%emt 0:00:09]} 30. Rb3 {[%emt 0:00:04]} Bg7 {[%emt 0:00:29]} 31. Nc5 {[%emt 0:00:19]} Rc7 {[%emt 0:00:11]} 32. Nxb7 {[%emt 0:00:19]} Rd2 {[%emt 0:00:13]} 33. c3 {[%emt 0:01:14]} Bxc3 {[%emt 0:00:25]} 34. Ra1 0-1